fUSD/lending_fUSD_20260529
["ID","MTS","AMOUNT","RATE_DAILY","PERIOD"]
[423311784,1780050641000,-500.0,0.00013698,2]
[423311797,1780050641000,-500.0,0.00013698,2]
[423311791,1780050641000,-500.0,0.00013698,2]
[423311764,1780050641000,-620.68779555,0.00013698,2]
[423311880,1780050641000,-500.0,0.00013698,2]
[423311836,1780050641000,-1519.08,0.00013698,2]
[423311868,1780050641000,-500.0,0.00013698,2]
[423311949,1780050641000,-500.0,0.00013698,2]
[423311957,1780050641000,-500.0,0.00013698,2]
[423311941,1780050641000,-500.0,0.00013698,2]
[423311939,1780050641000,-500.0,0.00013698,2]
[423311943,1780050641000,-500.0,0.00013698,2]
[423311951,1780050641000,-500.0,0.00013698,2]
[423311945,1780050641000,-500.0,0.00013698,2]
[423311953,1780050641000,-500.0,0.00013698,2]
[423311955,1780050641000,-500.0,0.00013698,2]
[423311947,1780050641000,-500.0,0.00013698,2]
[423311959,1780050641000,-500.0,0.00013698,2]
[423311962,1780050641000,-500.0,0.00013698,2]
[423311964,1780050641000,-500.0,0.00013698,2]
[423311966,1780050641000,-500.0,0.00013698,2]
[423311968,1780050641000,-500.0,0.00013698,2]
[423311978,1780050641000,-500.0,0.00013698,2]
[423311980,1780050641000,-500.0,0.00013698,2]
[423311982,1780050641000,-500.0,0.00013698,2]
[423311976,1780050641000,-500.0,0.00013698,2]
[423311985,1780050641000,-500.0,0.00013698,2]
[423311974,1780050641000,-500.0,0.00013698,2]
[423311972,1780050641000,-500.0,0.00013698,2]
[423311970,1780050641000,-500.0,0.00013698,2]
[423311987,1780050641000,-500.0,0.00013698,2]
[423311989,1780050641000,-500.0,0.00013698,2]
[423311993,1780050641000,-500.0,0.00013698,2]
[423311872,1780050641000,-500.0,0.00013698,2]
[423311997,1780050641000,-500.0,0.00013698,2]
[423311991,1780050641000,-500.0,0.00013698,2]
[423311936,1780050641000,-500.0,0.00013698,2]
[423311934,1780050641000,-500.0,0.00013698,2]
[423311995,1780050641000,-500.0,0.00013698,2]
[423311920,1780050641000,-958.38,0.00013698,2]
[423311932,1780050641000,-500.0,0.00013698,2]
[423311870,1780050641000,-500.0,0.00013698,2]
[423311878,1780050641000,-500.0,0.00013698,2]
[423311876,1780050641000,-500.0,0.00013698,2]
[423311874,1780050641000,-500.0,0.00013698,2]
[423311882,1780050641000,-500.0,0.00013698,2]
[423311884,1780050641000,-500.0,0.00013698,2]
[423311886,1780050641000,-500.0,0.00013698,2]
[423311896,1780050641000,-500.0,0.00013698,2]
[423311898,1780050641000,-552.49862501,0.00013698,2]
[423311902,1780050641000,-958.38,0.00013698,2]
[423311900,1780050641000,-958.38,0.00013698,2]
[423311888,1780050641000,-500.0,0.00013698,2]
[423311904,1780050641000,-958.38,0.00013698,2]
[423311866,1780050641000,-500.0,0.00013698,2]
[423311926,1780050641000,-958.38,0.00013698,2]
[423311928,1780050641000,-958.38,0.00013698,2]
[423311916,1780050641000,-958.38,0.00013698,2]
[423311918,1780050641000,-958.38,0.00013698,2]
[423311930,1780050641000,-500.0,0.00013698,2]
[423311890,1780050641000,-500.0,0.00013698,2]
[423311914,1780050641000,-958.38,0.00013698,2]
[423311922,1780050641000,-958.38,0.00013698,2]
[423311912,1780050641000,-958.38,0.00013698,2]
[423311910,1780050641000,-958.38,0.00013698,2]
[423311908,1780050641000,-958.38,0.00013698,2]
[423311906,1780050641000,-958.38,0.00013698,2]
[423311894,1780050641000,-500.0,0.00013698,2]
[423311892,1780050641000,-500.0,0.00013698,2]
[423311924,1780050641000,-958.38,0.00013698,2]
[423312091,1780050642000,-500.0,0.00013698,2]
[423312079,1780050642000,-500.0,0.00013698,2]
[423312081,1780050642000,-500.0,0.00013698,2]
[423312070,1780050642000,-500.0,0.00013698,2]
[423312074,1780050642000,-500.0,0.00013698,2]
[423312114,1780050642000,-500.0,0.00013698,2]
[423312087,1780050642000,-500.0,0.00013698,2]
[423312073,1780050642000,-500.0,0.00013698,2]
[423312063,1780050642000,-500.0,0.00013698,2]
[423312065,1780050642000,-500.0,0.00013698,2]
[423312089,1780050642000,-500.0,0.00013698,2]
[423312068,1780050642000,-500.0,0.00013698,2]
[423312059,1780050642000,-500.0,0.00013698,2]
[423312112,1780050642000,-500.0,0.00013698,2]
[423312077,1780050642000,-500.0,0.00013698,2]
[423312085,1780050642000,-500.0,0.00013698,2]
[423312093,1780050642000,-500.0,0.00013698,2]
[423312106,1780050642000,-500.0,0.00013698,2]
[423312108,1780050642000,-416.4885433,0.00013698,2]
[423312110,1780050642000,-500.0,0.00013698,2]
[423312099,1780050642000,-249.66568301,0.00013698,2]
[423312101,1780050642000,-500.0,0.00013698,2]
[423312097,1780050642000,-500.0,0.00013698,2]
[423312116,1780050642000,-500.0,0.00013698,2]
[423312120,1780050642000,-500.0,0.00013698,2]
[423312103,1780050642000,-529.19931579,0.00013698,2]
[423312050,1780050642000,-500.0,0.00013698,2]
[423312083,1780050642000,-500.0,0.00013698,2]
[423312061,1780050642000,-500.0,0.00013698,2]
[423312030,1780050642000,-878.02,0.00013698,2]
[423312057,1780050642000,-500.0,0.00013698,2]
[423312118,1780050642000,-500.0,0.00013698,2]
[423311999,1780050642000,-500.0,0.00013698,2]
[423312015,1780050642000,-500.97558109,0.00013698,2]
[423312001,1780050642000,-500.0,0.00013698,2]
[423312011,1780050642000,-500.0,0.00013698,2]
[423312013,1780050642000,-500.0,0.00013698,2]
[423312005,1780050642000,-500.0,0.00013698,2]
[423312003,1780050642000,-500.0,0.00013698,2]
[423312007,1780050642000,-500.0,0.00013698,2]
[423312009,1780050642000,-500.0,0.00013698,2]
[423312019,1780050642000,-878.02,0.00013698,2]
[423312017,1780050642000,-878.02,0.00013698,2]
[423312021,1780050642000,-878.02,0.00013698,2]
[423312023,1780050642000,-878.02,0.00013698,2]
[423312031,1780050642000,-878.02,0.00013698,2]
[423312028,1780050642000,-878.02,0.00013698,2]
[423312034,1780050642000,-878.02,0.00013698,2]
[423312037,1780050642000,-878.02,0.00013698,2]
[423312036,1780050642000,-878.02,0.00013698,2]
[423312025,1780050642000,-878.02,0.00013698,2]
[423312039,1780050642000,-878.02,0.00013698,2]
[423312041,1780050642000,-878.02,0.00013698,2]
[423312044,1780050642000,-878.02,0.00013698,2]
[423312046,1780050642000,-500.0,0.00013698,2]
[423312054,1780050642000,-500.0,0.00013698,2]
[423312048,1780050642000,-500.0,0.00013698,2]
[423312056,1780050642000,-500.0,0.00013698,2]
[423312052,1780050642000,-500.0,0.00013698,2]
[423312122,1780050642000,-500.0,0.00013698,2]
[423312095,1780050642000,-500.0,0.00013698,2]
[423312133,1780050642000,-500.0,0.00013698,2]
[423312194,1780050642000,-151.0,0.00013699,2]
[423312196,1780050642000,-151.0,0.00013699,2]
[423312198,1780050642000,-151.0,0.00013699,2]
[423312200,1780050642000,-274.425778,0.00013699,2]
[423312202,1780050642000,-2500.0,0.00013699,2]
[423312205,1780050642000,-154.0,0.00013699,2]
[423312220,1780050642000,-150.0,0.00013718,2]
[423312211,1780050642000,-150.0,0.00013715,2]
[423312207,1780050642000,-195.03198619,0.000137,2]
[423312216,1780050642000,-12582.42098997,0.00013717,2]
[423312213,1780050642000,-195.03198619,0.00013715,2]
[423312209,1780050642000,-150.30096206,0.000137,2]
[423312218,1780050642000,-11628.9050019,0.00013717,2]
[423312222,1780050642000,-150.0,0.00013722,2]
[423312224,1780050642000,-195.03198619,0.0001373,2]
[423312228,1780050642000,-195.03198619,0.00013745,2]
[423312238,1780050642000,-154.39,0.00013772,2]
[423312237,1780050642000,-150.0,0.00013769,2]
[423312234,1780050642000,-195.03198619,0.0001376,2]
[423312231,1780050642000,-150.0,0.0001376,2]
[423312226,1780050642000,-150.0,0.00013732,2]
[423312233,1780050642000,-150.0,0.0001376,2]
[423312235,1780050642000,-150.0,0.00013766,2]
[423312241,1780050642000,-195.03198619,0.00013775,2]
[423312244,1780050642000,-360.97910646,0.00013778,2]
[423312247,1780050642000,-150.0,0.00013787,2]
[423312250,1780050642000,-150.0,0.00013787,2]
[423312190,1780050642000,-151.0,0.00013699,2]
[423312192,1780050642000,-151.0,0.00013699,2]
[423312256,1780050642000,-4000.0,0.00013788,2]
[423312178,1780050642000,-151.0,0.00013699,2]
[423312188,1780050642000,-151.0,0.00013699,2]
[423312126,1780050642000,-500.0,0.00013698,2]
[423312137,1780050642000,-168.2651148,0.00013698,2]
[423312135,1780050642000,-500.0,0.00013698,2]
[423312129,1780050642000,-500.0,0.00013698,2]
[423312131,1780050642000,-500.0,0.00013698,2]
[423312143,1780050642000,-151.0,0.00013699,2]
[423312139,1780050642000,-166.66,0.00013699,2]
[423312141,1780050642000,-151.0,0.00013699,2]
[423312145,1780050642000,-151.0,0.00013699,2]
[423312156,1780050642000,-151.0,0.00013699,2]
[423312154,1780050642000,-151.0,0.00013699,2]
[423312147,1780050642000,-151.0,0.00013699,2]
[423312253,1780050642000,-150.0,0.00013787,2]
[423312124,1780050642000,-500.0,0.00013698,2]
[423312150,1780050642000,-151.0,0.00013699,2]
[423312152,1780050642000,-151.0,0.00013699,2]
[423312180,1780050642000,-151.0,0.00013699,2]
[423312186,1780050642000,-151.0,0.00013699,2]
[423312184,1780050642000,-151.0,0.00013699,2]
[423312176,1780050642000,-151.0,0.00013699,2]
[423312166,1780050642000,-151.0,0.00013699,2]
[423312174,1780050642000,-151.0,0.00013699,2]
[423312170,1780050642000,-151.0,0.00013699,2]
[423312164,1780050642000,-151.0,0.00013699,2]
[423312162,1780050642000,-151.0,0.00013699,2]
[423312160,1780050642000,-151.0,0.00013699,2]
[423312158,1780050642000,-151.0,0.00013699,2]
[423312172,1780050642000,-151.0,0.00013699,2]
[423312168,1780050642000,-151.0,0.00013699,2]
[423312356,1780050643000,-57395.62766503,0.0001399,2]
[423312348,1780050643000,-150.0,0.00013987,2]
[423312361,1780050643000,-5324.0,0.00014002,5]
[423312354,1780050643000,-500.0,0.00013989,2]
[423312344,1780050643000,-166.66,0.00013973,2]
[423312319,1780050643000,-195.03198619,0.00013927,2]
[423312341,1780050643000,-195.03198619,0.00013972,2]
[423312352,1780050643000,-715.48,0.00013989,2]
[423312323,1780050643000,-150.0,0.00013937,2]
[423312321,1780050643000,-670.2,0.00013929,2]
[423312359,1780050643000,-250.0,0.00014,2]
[423312346,1780050643000,-150.0,0.00013976,2]
[423312378,1780050643000,-195.03198619,0.00014033,2]
[423312363,1780050643000,-4863.0,0.00014002,5]
[423312365,1780050643000,-195.03198619,0.00014002,2]
[423312367,1780050643000,-150.0,0.00014003,2]
[423312371,1780050643000,-195.03198619,0.00014017,2]
[423312380,1780050643000,-150.0,0.00014045,2]
[423312317,1780050643000,-195.03198619,0.00013912,2]
[423312369,1780050643000,-150.0,0.0001401,2]
[423312386,1780050643000,-195.03198619,0.00014063,2]
[423312382,1780050643000,-195.03198619,0.00014048,2]
[423312376,1780050643000,-150.0,0.00014033,2]
[423312388,1780050643000,-150.0,0.00014064,2]
[423312373,1780050643000,-150.0,0.00014033,2]
[423312384,1780050643000,-150.0,0.0001405,2]
[423312390,1780050643000,-150.0,0.00014078,2]
[423312350,1780050643000,-195.03198619,0.00013987,2]
[423312339,1780050643000,-150.0,0.00013965,2]
[423312325,1780050643000,-8049.75467538,0.00013938,2]
[423312333,1780050643000,-150.0,0.00013949,2]
[423312392,1780050643000,-195.03198619,0.00014078,2]
[423312259,1780050643000,-195.03198619,0.0001379,2]
[423312262,1780050643000,-150.0,0.00013801,2]
[423312265,1780050643000,-150.0,0.00013806,2]
[423312274,1780050643000,-195.03198619,0.00013821,2]
[423312271,1780050643000,-150.0,0.00013815,2]
[423312268,1780050643000,-195.03198619,0.00013806,2]
[423312276,1780050643000,-150.0,0.00013828,2]
[423312279,1780050643000,-150.0,0.00013834,2]
[423312282,1780050643000,-166.66,0.00013836,2]
[423312285,1780050643000,-195.03198619,0.00013836,2]
[423312288,1780050643000,-150.0,0.00013836,2]
[423312290,1780050643000,-150.0,0.00013851,2]
[423312300,1780050643000,-195.03198619,0.00013881,2]
[423312294,1780050643000,-150.0,0.00013862,2]
[423312292,1780050643000,-195.03198619,0.00013851,2]
[423312303,1780050643000,-150.0,0.00013896,2]
[423312295,1780050643000,-195.03198619,0.00013866,2]
[423312307,1780050643000,-195.03198619,0.00013896,2]
[423312309,1780050643000,-2800.0,0.000139,5]
[423312297,1780050643000,-150.0,0.00013871,2]
[423312313,1780050643000,-150.0,0.00013906,2]
[423312315,1780050643000,-150.0,0.00013909,2]
[423312327,1780050643000,-150.0,0.00013941,2]
[423312329,1780050643000,-150.0,0.00013942,2]
[423312331,1780050643000,-195.03198619,0.00013942,2]
[423312335,1780050643000,-150.0,0.00013956,2]
[423312337,1780050643000,-195.03198619,0.00013957,2]
[423312305,1780050643000,-150.0,0.00013896,2]
[423312394,1780050643000,-150.0,0.0001408,2]
[423312396,1780050643000,-12582.42098997,0.00014081,2]
[423312467,1780050643000,-150.0,0.0001422,2]
[423312469,1780050643000,-195.03198619,0.00014229,2]
[423312473,1780050643000,-150.0,0.00014237,2]
[423312471,1780050643000,-150.0,0.00014237,2]
[423312475,1780050643000,-150.0,0.00014237,2]
[423312477,1780050643000,-195.03198619,0.00014245,2]
[423312480,1780050643000,-166.66,0.00014247,2]
[423312482,1780050643000,-579.97846143,0.00014248,2]
[423312488,1780050643000,-153.0,0.00014251,2]
[423312486,1780050643000,-151.0,0.00014251,2]
[423312484,1780050643000,-1545.0,0.00014251,2]
[423312490,1780050643000,-154.0,0.00014251,2]
[423312496,1780050643000,-150.0,0.0001426,2]
[423312494,1780050643000,-1638.37,0.00014255,2]
[423312498,1780050643000,-195.03198619,0.0001426,2]
[423312505,1780050643000,-150.0,0.00014289,2]
[423312507,1780050643000,-195.03198619,0.0001429,2]
[423312500,1780050643000,-195.03198619,0.00014275,2]
[423312515,1780050643000,-195.03198619,0.00014305,2]
[423312519,1780050643000,-150.0,0.00014324,2]
[423312502,1780050643000,-150.0,0.00014284,2]
[423312511,1780050643000,-150.0,0.00014305,2]
[423312521,1780050643000,-150.0,0.00014331,2]
[423312509,1780050643000,-150.0,0.00014295,2]
[423312513,1780050643000,-150.0,0.00014305,2]
[423312517,1780050643000,-195.03198619,0.0001432,2]
[423312398,1780050643000,-11628.9050019,0.00014081,2]
[423312465,1780050643000,-195.03198619,0.00014214,2]
[423312459,1780050643000,-150.0,0.0001419,2]
[423312492,1780050643000,-150.0,0.00014254,2]
[423312461,1780050643000,-195.03198619,0.00014199,2]
[423312404,1780050643000,-150.0,0.00014087,2]
[423312463,1780050643000,-150.0,0.00014214,2]
[423312400,1780050643000,-150.0,0.00014087,2]
[423312410,1780050643000,-150.0,0.00014101,2]
[423312408,1780050643000,-150.0,0.00014096,2]
[423312402,1780050643000,-150.0,0.00014087,2]
[423312406,1780050643000,-195.03198619,0.00014093,2]
[423312413,1780050643000,-195.03198619,0.00014108,2]
[423312415,1780050643000,-166.66,0.0001411,2]
[423312423,1780050643000,-195.03198619,0.00014139,2]
[423312421,1780050643000,-195.03198619,0.00014123,2]
[423312419,1780050643000,-150.0,0.00014123,2]
[423312425,1780050643000,-572.34,0.0001414,2]
[423312440,1780050643000,-150.0,0.0001415,2]
[423312417,1780050643000,-150.0,0.00014115,2]
[423312449,1780050643000,-150.0,0.00014169,2]
[423312453,1780050643000,-150.0,0.00014179,2]
[423312434,1780050643000,-261.57,0.0001414,2]
[423312445,1780050643000,-165.71,0.00014165,2]
[423312455,1780050643000,-195.03198619,0.00014184,2]
[423312457,1780050643000,-150.0,0.00014185,2]
[423312447,1780050643000,-150.0,0.00014169,2]
[423312451,1780050643000,-195.03198619,0.00014169,2]
[423312432,1780050643000,-150.0,0.0001414,2]
[423312430,1780050643000,-200.0,0.0001414,2]
[423312436,1780050643000,-1494.03,0.0001414,2]
[423312428,1780050643000,-2000.0,0.0001414,2]
[423312438,1780050643000,-150.0,0.00014143,2]
[423312443,1780050643000,-195.03198619,0.00014154,2]
[423312615,1780050644000,-500.0,0.00014496,2]
[423312619,1780050644000,-500.0,0.00014496,2]
[423312621,1780050644000,-958.38,0.00014496,2]
[423312649,1780050644000,-150.99,0.00014504,2]
[423312617,1780050644000,-1519.08,0.00014496,2]
[423312605,1780050644000,-150.0,0.00014487,2]
[423312582,1780050644000,-195.03198619,0.00014426,2]
[423312601,1780050644000,-150.0,0.00014471,2]
[423312599,1780050644000,-150.0,0.00014464,2]
[423312597,1780050644000,-195.03198619,0.00014456,2]
[423312584,1780050644000,-150.0,0.00014429,2]
[423312607,1780050644000,-195.03198619,0.00014487,2]
[423312603,1780050644000,-195.03198619,0.00014472,2]
[423312609,1780050644000,-637.37,0.00014496,2]
[423312633,1780050644000,-566.33999559,0.00014504,2]
[423312611,1780050644000,-812.78,0.00014496,2]
[423312627,1780050644000,-878.02,0.00014496,2]
[423312613,1780050644000,-790.5,0.00014496,2]
[423312625,1780050644000,-500.0,0.00014496,2]
[423312629,1780050644000,-150.0,0.00014498,2]
[423312631,1780050644000,-195.03198619,0.00014502,2]
[423312641,1780050644000,-24999.99,0.00014504,2]
[423312643,1780050644000,-3013.84,0.00014504,2]
[423312646,1780050644000,-2774.15,0.00014504,2]
[423312639,1780050644000,-1298.12,0.00014504,2]
[423312523,1780050644000,-195.03198619,0.00014335,2]
[423312635,1780050644000,-4999.99,0.00014504,2]
[423312593,1780050644000,-12582.42098997,0.00014445,2]
[423312623,1780050644000,-500.0,0.00014496,2]
[423312591,1780050644000,-195.03198619,0.00014441,2]
[423312529,1780050644000,-195.03198619,0.00014351,2]
[423312586,1780050644000,-150.0,0.00014441,2]
[423312527,1780050644000,-150.0,0.00014351,2]
[423312531,1780050644000,-150.0,0.00014359,2]
[423312533,1780050644000,-195.03198619,0.00014366,2]
[423312525,1780050644000,-360.97910646,0.00014339,2]
[423312535,1780050644000,-169.9,0.00014367,2]
[423312542,1780050644000,-169.9,0.00014367,2]
[423312537,1780050644000,-169.9,0.00014367,2]
[423312544,1780050644000,-150.0,0.00014373,2]
[423312540,1780050644000,-169.9,0.00014367,2]
[423312546,1780050644000,-150.0,0.00014377,2]
[423312548,1780050644000,-195.03198619,0.00014381,2]
[423312549,1780050644000,-166.66,0.00014384,2]
[423312551,1780050644000,-150.0,0.00014387,2]
[423312595,1780050644000,-11628.9050019,0.00014445,2]
[423312553,1780050644000,-150.0,0.00014387,2]
[423312563,1780050644000,-500.0,0.00014392,10]
[423312555,1780050644000,-150.0,0.00014387,2]
[423312568,1780050644000,-150.0,0.00014394,2]
[423312557,1780050644000,-500.0,0.00014392,10]
[423312559,1780050644000,-500.0,0.00014392,10]
[423312566,1780050644000,-185.20326433,0.00014392,10]
[423312570,1780050644000,-150.0,0.00014396,2]
[423312572,1780050644000,-195.03198619,0.00014396,2]
[423312574,1780050644000,-150.0,0.0001441,2]
[423312580,1780050644000,-150.0,0.00014424,2]
[423312578,1780050644000,-8049.75467538,0.00014419,2]
[423312576,1780050644000,-195.03198619,0.00014411,2]
[423312588,1780050644000,-150.0,0.00014441,2]
[423312561,1780050644000,-500.0,0.00014392,10]
[423312637,1780050644000,-1490.42,0.00014504,2]
[423312670,1780050644000,-195.03198619,0.00014517,2]
[423312655,1780050644000,-299.99,0.00014504,2]
[423312708,1780050644000,-150.0,0.00014658,2]
[423312704,1780050644000,-150.0,0.0001464,2]
[423312709,1780050644000,-150.0,0.00014668,2]
[423312711,1780050644000,-195.03198619,0.00014668,2]
[423312712,1780050644000,-150.0,0.00014673,2]
[423312723,1780050644000,-195.03198619,0.00014714,2]
[423312714,1780050644000,-150.0,0.00014687,2]
[423312715,1780050644000,-150.0,0.00014687,2]
[423312724,1780050644000,-195.03198619,0.00014729,2]
[423312713,1780050644000,-195.03198619,0.00014684,2]
[423312716,1780050644000,-150.0,0.00014687,2]
[423312717,1780050644000,-195.03198619,0.00014699,2]
[423312718,1780050644000,-500.0,0.000147,5]
[423312701,1780050644000,-150.0,0.00014638,2]
[423312722,1780050644000,-150.0,0.00014714,2]
[423312720,1780050644000,-150.0,0.00014707,2]
[423312721,1780050644000,-150.0,0.00014714,2]
[423312726,1780050644000,-150.0,0.00014742,2]
[423312733,1780050644000,-150.0,0.00014759,2]
[423312732,1780050644000,-150.0,0.00014756,2]
[423312730,1780050644000,-150.0,0.00014752,2]
[423312734,1780050644000,-195.03198619,0.00014759,2]
[423312727,1780050644000,-195.03198619,0.00014744,2]
[423312731,1780050644000,-154.39,0.00014755,2]
[423312725,1780050644000,-350.0,0.0001473,2]
[423312728,1780050644000,-6923.891,0.00014752,2]
[423312729,1780050644000,-381.291,0.00014752,2]
[423312651,1780050644000,-9999.99,0.00014504,2]
[423312719,1780050644000,-150.0,0.00014705,2]
[423312702,1780050644000,-195.03198619,0.00014638,2]
[423312694,1780050644000,-150.0,0.00014603,2]
[423312705,1780050644000,-150.0,0.00014646,2]
[423312706,1780050644000,-195.03198619,0.00014653,2]
[423312653,1780050644000,-53922.72,0.00014504,2]
[423312658,1780050644000,-9999.99,0.00014504,2]
[423312662,1780050644000,-9999.99,0.00014504,2]
[423312668,1780050644000,-150.0,0.00014509,2]
[423312666,1780050644000,-6155.12,0.00014504,2]
[423312672,1780050644000,-150.0,0.00014518,2]
[423312664,1780050644000,-1741.43,0.00014504,2]
[423312674,1780050644000,-150.0,0.00014525,2]
[423312676,1780050644000,-698.65958148,0.00014529,2]
[423312678,1780050644000,-150.0,0.00014532,2]
[423312679,1780050644000,-195.03198619,0.00014532,2]
[423312680,1780050644000,-150.0,0.00014533,2]
[423312682,1780050644000,-195.03198619,0.00014547,2]
[423312660,1780050644000,-6349.52,0.00014504,2]
[423312684,1780050644000,-195.03198619,0.00014562,2]
[423312683,1780050644000,-9098.322755,0.00014553,2]
[423312700,1780050644000,-433.0,0.00014631,2]
[423312697,1780050644000,-150.0,0.00014612,2]
[423312698,1780050644000,-150.0,0.00014623,2]
[423312685,1780050644000,-150.0,0.00014565,2]
[423312681,1780050644000,-150.0,0.00014537,2]
[423312699,1780050644000,-195.03198619,0.00014623,2]
[423312686,1780050644000,-150.0,0.00014568,2]
[423312687,1780050644000,-150.0,0.00014578,2]
[423312693,1780050644000,-500.0,0.000146,5]
[423312690,1780050644000,-195.03198619,0.00014578,2]
[423312688,1780050644000,-150.0,0.00014578,2]
[423312692,1780050644000,-195.03198619,0.00014593,2]
[423312695,1780050644000,-195.03198619,0.00014608,2]
[423312753,1780050645000,-1187.0,0.00014807,2]
[423312767,1780050645000,-14634.94773565,0.00014841,2]
[423312758,1780050645000,-439.313529,0.00014809,2]
[423312757,1780050645000,-439.313529,0.00014809,2]
[423312763,1780050645000,-350.0,0.00014823,2]
[423312773,1780050645000,-150.0,0.0001485,2]
[423312762,1780050645000,-195.03198619,0.0001482,2]
[423312764,1780050645000,-195.03198619,0.00014835,2]
[423312769,1780050645000,-150.0,0.00014847,2]
[423312776,1780050645000,-500.0,0.00014864,2]
[423312771,1780050645000,-475.23484724,0.0001485,2]
[423312768,1780050645000,-150.0,0.00014846,2]
[423312765,1780050645000,-150.0,0.00014836,2]
[423312770,1780050645000,-3141.70262466,0.0001485,2]
[423312774,1780050645000,-195.03198619,0.0001485,2]
[423312775,1780050645000,-500.0,0.00014864,2]
[423312777,1780050645000,-500.0,0.00014864,2]
[423312785,1780050645000,-500.0,0.00014864,2]
[423312754,1780050645000,-12582.42098997,0.00014809,2]
[423312766,1780050645000,-500.0,0.0001484,2]
[423312759,1780050645000,-151.0,0.00014809,2]
[423312737,1780050645000,-244.34088694,0.00014774,2]
[423312755,1780050645000,-439.313529,0.00014809,2]
[423312736,1780050645000,-150.0,0.00014774,2]
[423312735,1780050645000,-150.0,0.00014774,2]
[423312749,1780050645000,-500.0,0.000148,5]
[423312740,1780050645000,-150.0,0.00014782,2]
[423312738,1780050645000,-195.03198619,0.00014774,2]
[423312741,1780050645000,-195.03198619,0.0001479,2]
[423312778,1780050645000,-500.0,0.00014864,2]
[423312748,1780050645000,-150.0,0.00014799,2]
[423312739,1780050645000,-150.0,0.00014777,2]
[423312761,1780050645000,-150.0,0.00014812,2]
[423312745,1780050645000,-1648.79,0.00014798,2]
[423312746,1780050645000,-151.0,0.00014798,2]
[423312743,1780050645000,-2000.0,0.00014798,2]
[423312742,1780050645000,-2000.0,0.00014798,2]
[423312744,1780050645000,-2000.0,0.00014798,2]
[423312751,1780050645000,-195.03198619,0.00014805,2]
[423312750,1780050645000,-150.0,0.00014805,2]
[423312752,1780050645000,-2000.0,0.00014807,2]
[423312760,1780050645000,-11628.9050019,0.00014809,2]
[423312756,1780050645000,-439.313529,0.00014809,2]
[423312747,1780050645000,-151.0,0.00014798,2]
[423312779,1780050645000,-500.0,0.00014864,2]
[423312772,1780050645000,-150.0,0.0001485,2]
[423312782,1780050645000,-500.0,0.00014864,2]
[423312806,1780050645000,-150.0,0.00014895,2]
[423312807,1780050645000,-195.03198619,0.00014895,2]
[423312810,1780050645000,-22142.45254127,0.000149,2]
[423312809,1780050645000,-1638.37,0.00014899,2]
[423312818,1780050645000,-151.0,0.000149,2]
[423312820,1780050645000,-154.674576,0.000149,2]
[423312816,1780050645000,-151.0,0.000149,2]
[423312814,1780050645000,-617.382173,0.000149,2]
[423312812,1780050645000,-617.382173,0.000149,2]
[423312821,1780050645000,-154.674576,0.000149,2]
[423312813,1780050645000,-617.382173,0.000149,2]
[423312819,1780050645000,-499.999999,0.000149,2]